bitfinex/quotes_ETHUSD_20250529
["timestamp","ask_amount","ask_price","bid_price","bid_amount"]
[1748502335975,4.52200865,2721.9,2720.7,12.6644736]
[1748502335976,0.8481,2721.9,2721.6,3.67425204]
[1748502336177,0.8481,2721.9,2720.9,4.2251518]
[1748502336395,0.8481,2721.9,2720.9,3.6751518]
[1748502336718,4.6191,2721.9,2720.9,0.55]
[1748502336888,4.6191,2721.9,2721.5,3.67431484]
[1748502337087,4.6191,2721.9,2721.4,3.67449333]
[1748502337262,4.6191,2721.9,2721.3,3.67466891]
[1748502337469,0.82928804,2721.8,2721.3,3.67466891]
[1748502337670,0.82928804,2721.8,2721.2,8.0]
[1748502337983,4.48120592,2721.7,2721.1,11.67493257]
[1748502338188,0.8069,2721.7,2721.2,3.6747776]
[1748502338505,0.8069,2721.7,2720.9,3.67525411]
[1748502338506,4.4814222,2721.5,2720.9,3.67525411]
[1748502338717,3.771,2721.4,2720.9,3.67525411]
[1748502338873,7.44560284,2721.4,2720.9,3.67525411]
[1748502339178,3.771,2721.4,2720.9,3.67525411]
[1748502339378,3.771,2721.4,2721.0,3.67510717]
[1748502339995,3.771,2721.4,2720.9,3.67520566]
[1748502340593,8.56945493,2721.4,2720.8,3.67529685]
[1748502340787,8.56945493,2721.4,2720.8,3.67529866]
[1748502341022,8.56945493,2721.4,2720.8,3.67525643]
[1748502341203,8.56945493,2721.4,2720.7,3.67545446]
[1748502341386,8.56945493,2721.4,2720.8,3.67538959]
[1748502341717,4.89487001,2721.4,2720.9,3.67516482]
[1748502342526,5.43757348,2721.3,2720.7,3.67540696]
[1748502342728,1.7628242,2721.3,2720.8,3.67536126]
[1748502343019,3.768,2721.2,2720.8,3.67534204]
[1748502343221,3.768,2721.2,2721.0,3.67510362]
[1748502343627,3.768,2721.2,2720.7,3.67544682]
[1748502343788,3.768,2721.2,2720.7,3.67552468]
[1748502344195,3.67518935,2721.0,2720.4,3.67580862]
[1748502344694,0.8102,2720.9,2720.5,3.6757792]
[1748502344922,0.8102,2720.9,2720.4,3.67591586]
[1748502344923,4.4854711,2720.9,2720.4,3.67591586]
[1748502345123,0.8102,2720.9,2720.4,3.67591586]
[1748502345337,3.77,2720.8,2720.5,3.67578868]
[1748502345822,3.77,2720.8,2720.6,3.67564827]
[1748502347031,0.8102,2720.9,2720.4,8.0]
[1748502347234,3.67446011,2721.5,2720.2,8.0]
[1748502347235,0.7898,2721.4,2720.2,8.0]
[1748502347435,0.7898,2721.4,2721.2,3.67481528]
[1748502347603,0.7898,2721.4,2721.3,3.67471429]
[1748502348233,4.5986,2721.6,2720.9,8.0]
[1748502348439,4.5986,2721.6,2721.3,3.67471429]
[1748502348648,0.8286,2721.8,2721.5,3.67433945]
[1748502348946,3.771,2721.7,2721.4,3.67449086]
[1748502349805,3.771,2721.7,2721.3,3.67464305]
[1748502351038,0.8286,2721.8,2721.4,3.67448878]
[1748502351320,3.769,2721.7,2721.3,3.67464705]
[1748502351751,0.8286,2721.8,2721.5,3.6744228]
[1748502351959,0.8286,2721.8,2721.3,3.67471377]
[1748502351960,4.5976,2721.8,2721.3,3.67471377]
[1748502352262,0.05,2721.9,2721.8,3.67403923]
[1748502352918,0.05,2721.9,2721.6,8.0]
[1748502353133,0.05,2721.9,2721.4,11.67451024]
[1748502353134,0.05,2721.9,2721.4,3.67449881]
[1748502353329,0.7734,2721.7,2721.2,8.0]
[1748502353651,0.7734,2721.7,2721.2,11.67478525]
[1748502353809,0.7734,2721.7,2721.5,3.67432473]
[1748502354353,0.7734,2721.7,2721.4,3.67451583]
[1748502354848,0.7734,2721.7,2721.1,8.0]
[1748502355011,0.7734,2721.7,2721.5,3.67437925]
[1748502355208,0.7734,2721.7,2721.4,3.67451235]
[1748502355408,0.7734,2721.7,2721.1,8.0]
[1748502355618,0.7734,2721.7,2721.4,3.67445015]
[1748502355929,0.7734,2721.7,2721.5,3.67443051]
[1748502356132,0.7734,2721.7,2721.4,3.67452865]
[1748502356442,0.7734,2721.7,2721.1,8.0]
[1748502356642,0.7734,2721.7,2721.5,3.67439617]
[1748502358946,0.7734,2721.7,2721.6,3.67430922]
[1748502359123,0.7734,2721.7,2721.5,3.6743801]
[1748502359337,0.7734,2721.7,2721.4,3.67456888]
[1748502359531,3.822,2721.9,2721.7,3.67416104]
[1748502359727,0.05,2721.9,2721.7,3.67408756]
[1748502360638,0.05,2721.9,2721.8,3.67403923]
[1748502360845,0.05,2721.9,2721.2,8.0]
[1748502361045,0.05,2721.9,2721.7,3.67410404]
[1748502361252,0.05,2721.9,2721.6,3.67423633]
[1748502361644,0.05,2721.9,2721.3,6.53310617]
[1748502361845,0.05,2721.9,2721.3,3.67470231]
[1748502362132,0.05,2721.9,2721.5,3.67436068]
[1748502362336,0.82622474,2721.8,2721.5,3.67436068]
[1748502362564,0.82622474,2721.8,2721.4,3.67450919]
[1748502362760,0.82622474,2721.8,2721.5,3.67443947]
[1748502363117,0.82622474,2721.8,2721.4,3.67448524]
[1748502363251,0.82622474,2721.8,2721.5,3.67440007]
[1748502363466,0.82622474,2721.8,2720.8,3.67534912]
[1748502363467,0.7714,2721.3,2720.8,3.67534912]
[1748502363639,0.44460277,2721.2,2720.7,3.67551206]
[1748502363986,4.5454,2721.3,2721.0,3.67510246]
[1748502364376,4.5454,2721.3,2721.1,3.67495723]
[1748502364606,0.7723,2721.6,2721.4,3.67455623]
[1748502364756,0.7723,2721.6,2721.3,3.67458614]
[1748502364757,4.5453,2721.6,2721.3,3.67458614]
[1748502364941,4.5453,2721.6,2720.8,3.67527753]
[1748502365141,4.5453,2721.6,2721.2,3.67476051]
[1748502365554,4.5453,2721.6,2721.1,3.67492369]
[1748502366189,8.21970429,2721.6,2721.0,3.67504542]
[1748502366395,0.7889,2721.4,2720.9,3.67521778]
[1748502366554,0.7889,2721.2,2720.6,3.67561878]
[1748502366754,3.777,2721.1,2720.6,3.67561878]
[1748502366948,3.777,2721.1,2720.7,3.67551302]
[1748502367181,3.777,2721.1,2720.6,3.675631]
[1748502367364,3.777,2721.1,2720.7,3.67551116]
[1748502367563,4.60107953,2721.1,2720.7,3.67551116]
[1748502367854,4.60107953,2721.1,2720.6,3.67558703]
[1748502368279,4.60107953,2721.1,2720.7,3.67549343]
[1748502369586,4.60107953,2721.1,2720.8,3.67538163]
[1748502369901,3.777,2721.1,2720.8,3.67538163]
[1748502371401,3.774,2721.1,2720.8,3.67538163]
[1748502372567,0.7889,2721.2,2721.1,3.67498438]
[1748502372769,4.50027872,2721.8,2720.3,3.67606513]
[1748502372770,0.8182,2721.7,2720.6,8.0]
[1748502372970,3.773,2721.6,2721.2,3.67471948]
[1748502373743,3.773,2721.6,2721.3,3.6747064]
[1748502374068,3.773,2721.6,2721.1,3.67487092]
[1748502374245,3.774,2721.5,2721.3,3.67463717]
[1748502374921,3.774,2721.5,2721.2,3.67477817]
[1748502375659,0.7904,2721.4,2720.7,3.67552468]
[1748502375872,0.7904,2721.4,2720.3,3.67594586]
[1748502376142,0.7904,2721.4,2720.2,1.535]
[1748502376143,4.46502315,2721.4,2720.8,3.67529031]
[1748502376556,0.7604,2721.3,2720.7,3.67547135]
[1748502376778,0.44350232,2721.2,2720.7,3.67547135]
[1748502376927,3.773,2721.1,2720.7,3.67547135]
[1748502377103,3.773,2721.1,2720.6,3.67558757]
[1748502377307,0.7604,2721.0,2720.6,3.67558757]
[1748502377549,0.7604,2721.0,2720.7,3.67552128]
[1748502378449,0.7604,2721.0,2720.4,8.0]
[1748502378610,0.7604,2721.0,2720.2,8.985]
[1748502378809,0.7604,2721.0,2720.6,3.67560496]
[1748502379250,0.7604,2721.0,2720.7,3.67550138]
[1748502379634,0.7604,2721.0,2720.2,0.985]
[1748502379833,0.7604,2721.0,2720.2,8.985]
[1748502380038,0.7604,2721.0,2720.6,3.67559247]
[1748502381011,0.7604,2721.0,2720.5,3.67576196]
[1748502381234,4.43554713,2721.0,2720.5,3.67576196]
[1748502382440,4.43554713,2721.0,2720.4,3.67586275]
[1748502382748,4.43555195,2721.0,2720.5,3.67576682]
[1748502382920,0.7843,2720.8,2720.4,3.67587963]
[1748502383110,0.7843,2720.8,2720.3,3.67603937]
[1748502383315,0.7843,2720.8,2720.4,3.67593001]
[1748502383717,0.7843,2720.8,2720.0,0.986]
[1748502383913,0.7843,2720.8,2720.5,3.67569522]
[1748502385030,0.7843,2720.8,2720.6,3.67559573]
[1748502385410,0.7843,2720.8,2720.7,3.67552468]
[1748502385615,0.7679,2721.2,2720.8,3.67538929]
[1748502385834,3.77,2721.1,2720.6,3.67559573]
[1748502386030,3.77,2721.1,2720.7,3.67546]
[1748502386269,3.77,2721.1,2720.3,8.0]
[1748502386446,3.77,2721.1,2720.6,3.6755601]
[1748502386647,0.85803394,2721.0,2720.6,3.6755601]
[1748502386856,1.13537302,2721.2,2720.4,3.67593001]
[1748502387032,0.7679,2721.2,2720.8,3.67537793]
[1748502387240,0.7679,2721.2,2720.9,3.67517937]
[1748502388057,1.16811165,2721.8,2720.4,11.67589514]
[1748502388260,1.16811165,2721.8,2721.3,3.67464369]
[1748502388261,4.5851,2721.7,2721.3,3.67464369]
[1748502388476,0.9085452,2721.6,2720.6,8.0]
[1748502388662,4.5851,2721.7,2721.4,3.6745145]
[1748502389289,0.8051,2721.7,2721.4,3.6745145]
[1748502389717,0.8051,2721.7,2720.7,9.254392]
[1748502389718,0.8051,2721.7,2721.6,3.67430922]
[1748502389982,0.8051,2721.7,2720.7,9.254392]
[1748502389983,3.78,2722.0,2721.3,3.67469069]
[1748502390212,4.5851,2722.1,2721.8,3.67403923]
[1748502390341,0.8051,2722.1,2721.8,3.67403923]
[1748502390544,4.5861,2722.1,2721.8,3.67403923]
[1748502390774,0.8051,2722.1,2721.8,3.67403923]
[1748502391072,0.8051,2722.1,2721.5,3.67435189]
[1748502391073,4.4787821,2722.1,2721.5,3.67435189]
[1748502391238,4.4787821,2722.1,2721.6,3.67426744]
[1748502391591,4.4787821,2722.1,2721.1,2.78486732]
[1748502391592,0.8051,2722.1,2721.7,3.6741519]
[1748502393088,0.8051,2722.1,2721.5,3.67433707]
[1748502393326,0.8051,2722.1,2721.3,3.67471429]
[1748502393493,0.8051,2722.1,2721.8,3.67403923]
[1748502393676,0.8129,2722.3,2721.8,3.67403923]
[1748502393850,0.8129,2722.6,2721.8,11.67403923]
[1748502394072,0.8129,2722.8,2721.8,11.67403923]
[1748502395160,0.05,2722.9,2722.8,3.67268987]
[1748502395666,0.05,2722.9,2722.8,3.70941181]
[1748502395881,0.05,2722.9,2722.8,11.67268987]
[1748502396596,0.05,2722.9,2722.8,8.0]
[1748502396980,0.05,2722.9,2722.8,11.67268987]
[1748502401472,0.05,2722.9,2722.7,8.0]
[1748502401672,0.05,2722.9,2722.7,11.67280697]
[1748502402003,0.05,2722.9,2722.8,3.67268987]
[1748502407052,0.05,2722.9,2722.3,5.20928472]
[1748502407247,0.05,2722.9,2722.8,3.67268987]
[1748502411920,0.05,2722.9,2722.7,3.67274048]
[1748502412844,0.05,2722.9,2722.5,8.0]
[1748502413039,0.05,2722.9,2722.5,3.67307713]
[1748502413246,0.05,2722.9,2721.8,3.67392781]
[1748502413544,0.8302,2722.8,2722.5,8.0]
[1748502413745,0.8302,2722.8,2722.5,3.6730898]
[1748502414044,0.8302,2722.8,2722.6,3.67295882]
[1748502414187,0.8302,2722.8,2722.7,3.67282476]
[1748502415120,0.05,2722.9,2722.2,8.55]
[1748502415321,0.05,2722.9,2722.7,3.67273016]
[1748502415487,0.05,2722.9,2722.8,3.67268987]
[1748502419633,0.05,2722.9,2722.3,3.67336443]
[1748502419817,0.7787,2722.8,2722.4,8.0]
[1748502420306,0.7787,2722.8,2722.6,3.6729345]
[1748502421010,0.7787,2722.8,2722.5,3.67307147]
[1748502421410,0.7787,2722.8,2722.4,3.67320579]
[1748502421411,0.7787,2722.8,2722.0,0.988]
[1748502421633,3.67304017,2722.6,2722.0,4.66171939]
[1748502421831,3.67304075,2722.6,2722.0,3.67371939]
[1748502422031,3.67304075,2722.6,2722.0,11.67371939]
[1748502422032,0.8063,2722.5,2722.0,11.67371939]
[1748502422833,0.8063,2722.5,2722.0,4.40965604]
[1748502423044,0.8063,2722.5,2722.0,3.67363896]
[1748502423228,1.25423408,2722.5,2722.1,3.673539]
[1748502423432,1.25423408,2722.5,2722.2,3.67342597]
[1748502423746,0.8063,2722.5,2722.2,3.67342597]
[1748502423962,0.8063,2722.5,2722.4,3.6732295]
[1748502424453,0.7726,2722.7,2722.4,3.6732295]
[1748502424805,0.7726,2722.7,2721.8,8.0]
[1748502425006,3.67303778,2722.6,2722.0,3.6736921]
[1748502425232,7.44879323,2722.8,2721.8,3.67403923]
[1748502425233,0.7769,2722.3,2721.8,3.67403923]
[1748502425432,0.7769,2722.3,2721.6,0.988]
[1748502425433,3.67361949,2722.2,2721.6,0.988]
[1748502425773,0.7785,2722.1,2721.6,4.66228809]
[1748502426607,4.4521494,2722.1,2721.6,4.66228809]
[1748502427308,4.4521494,2722.1,2721.4,3.67456016]
[1748502427309,3.67398693,2721.9,2721.4,3.67456016]
[1748502427537,3.67397651,2721.9,2721.2,3.6748065]
[1748502427737,4.90901838,2722.0,2721.5,3.67441435]
[1748502427941,0.79,2722.0,2721.5,3.67441435]
[1748502428209,0.79,2722.0,2721.4,3.67457337]
[1748502428210,0.79,2722.0,2721.7,3.67406291]
[1748502428409,0.79,2722.0,2721.6,3.67421938]
[1748502428665,0.79,2722.0,2721.0,12.66309627]
[1748502428666,3.67397498,2721.9,2721.3,3.6745875]
[1748502428953,4.4638276,2722.0,2721.4,3.6745394]
[1748502429162,5.28799599,2722.0,2721.5,3.67444402]
[1748502429363,3.67394842,2721.9,2721.3,3.67469071]
[1748502429566,5.28800283,2722.0,2721.4,3.67452206]
[1748502429762,4.94793156,2721.9,2721.4,3.67452206]
[1748502429948,1.2739671,2721.9,2721.4,3.67452206]
[1748502430150,1.2739671,2721.9,2721.3,3.67471429]
[1748502430319,1.61416839,2722.0,2721.0,12.66307139]
[1748502430320,0.79,2722.0,2721.2,3.67484933]
[1748502430524,4.569,2722.0,2721.6,3.67426751]
[1748502431426,8.24279993,2722.0,2721.5,3.67443753]
[1748502431627,8.24279993,2722.0,2721.4,3.67452414]
[1748502431872,8.24279993,2722.0,2721.5,3.67442055]
[1748502432177,9.43443225,2722.0,2721.5,3.67442055]
[1748502432379,3.67392968,2721.9,2721.4,3.67453408]
[1748502432559,9.43446222,2722.0,2721.4,3.67453408]
[1748502432882,3.778,2721.9,2721.5,3.67444373]
[1748502433181,0.57596323,2721.8,2721.3,3.67464041]
[1748502433330,0.7527,2721.7,2721.3,3.67464041]
[1748502433975,0.7527,2721.7,2721.3,3.67471429]
[1748502434170,0.7527,2721.7,2721.4,3.67457756]
[1748502434371,0.7527,2721.7,2721.5,3.67443438]
[1748502435422,0.7527,2721.7,2721.3,3.67463671]
[1748502435937,0.7527,2721.7,2721.0,11.67508954]
[1748502435938,0.7527,2721.7,2721.5,3.67440368]
[1748502436138,0.7527,2721.7,2721.6,3.67430922]
[1748502436669,3.776,2721.8,2721.5,3.6744332]
[1748502436839,0.8217,2721.9,2721.6,3.67420297]
[1748502437161,4.5977,2721.9,2721.6,3.67420297]
[1748502437361,4.5977,2721.9,2721.4,3.67451423]
[1748502437568,4.5977,2721.9,2721.4,3.67457926]
[1748502437754,4.5977,2721.9,2721.6,3.67430099]
[1748502437962,5.42483852,2721.9,2721.4,3.67451263]
[1748502438283,9.09875126,2721.9,2721.4,3.67451263]
[1748502438790,5.42483852,2721.9,2721.4,3.67451263]
[1748502438936,3.674045,2721.8,2721.3,3.67463302]
[1748502439287,3.674045,2721.8,2721.0,8.0]
[1748502439288,4.43366428,2721.7,2721.2,3.67476153]
[1748502439786,4.43366428,2721.7,2721.1,3.67489389]
[1748502440201,0.7964,2721.4,2720.6,8.0]
[1748502440490,0.7964,2721.4,2721.0,3.67499712]
[1748502440636,0.7964,2721.4,2721.1,3.67490275]
[1748502440835,0.7964,2721.4,2720.7,3.67552468]
[1748502440836,0.7964,2721.4,2721.0,3.67511703]
[1748502441084,0.7964,2721.4,2721.2,3.67483935]
[1748502441388,0.7964,2721.4,2721.0,3.67511703]
[1748502441389,0.7894,2721.7,2721.6,3.67429216]
[1748502441696,3.778,2722.1,2721.8,3.67394495]
[1748502441968,3.778,2722.1,2721.0,0.55]
[1748502441969,3.778,2722.1,2721.4,3.67450345]
[1748502442167,3.778,2722.1,2721.6,3.67421318]
[1748502442369,7.45166881,2722.1,2721.6,3.67421318]
[1748502442569,5.2777003,2722.0,2721.1,8.0]
[1748502442776,5.2777003,2722.0,2721.5,3.67441381]
[1748502443370,1.60390688,2722.0,2721.5,3.67441381]
[1748502443565,1.60390688,2722.0,2721.1,8.0]
[1748502443747,1.60390688,2722.0,2721.6,3.67430248]
[1748502444140,1.60390688,2722.0,2721.5,3.67437697]
[1748502444839,5.27768516,2722.0,2721.5,3.67437697]
[1748502445044,0.90556852,2721.9,2721.5,3.67437697]
[1748502446079,0.90556852,2721.9,2721.6,3.67429875]
[1748502446245,0.7798,2722.0,2721.6,3.67429875]
[1748502446582,0.7798,2722.0,2721.4,3.67456215]
[1748502446583,0.7798,2722.0,2721.4,3.67456598]
[1748502446937,0.7798,2722.0,2721.4,3.67452969]
[1748502447140,0.757,2721.8,2721.3,3.6746606]
[1748502447342,0.757,2721.8,2721.4,3.67455084]
[1748502447678,4.87420328,2721.8,2721.2,3.67472961]
[1748502447883,4.87420328,2721.8,2720.9,8.989]
[1748502448185,4.87420328,2721.8,2720.8,3.774]
[1748502448186,0.757,2721.6,2720.8,8.0]
[1748502448475,0.757,2721.6,2721.2,3.67472793]
[1748502448678,1.62182285,2721.6,2721.3,3.67469375]
[1748502448846,0.757,2721.6,2721.3,3.67469375]
[1748502449046,0.757,2721.6,2721.4,3.674569]
[1748502449251,4.5258,2721.8,2721.4,3.674569]
[1748502450008,4.5258,2721.8,2721.5,3.67444424]
[1748502451860,4.5258,2721.8,2721.3,3.67461767]
[1748502451861,5.34575788,2721.8,2721.3,3.67461767]
[1748502452047,9.01980234,2721.8,2721.3,3.67461767]
[1748502452566,5.34575788,2721.8,2721.4,3.67456896]
[1748502453582,5.34575788,2721.8,2721.5,3.67443903]
[1748502454406,3.67440939,2721.6,2721.0,3.6750404]
[1748502454687,4.04190063,2721.5,2720.9,3.67512684]
[1748502454891,0.7658,2721.4,2720.9,3.67512684]
[1748502455190,0.7658,2721.4,2720.9,3.67525451]
[1748502455492,0.7658,2721.4,2720.8,3.6753669]
[1748502455853,0.7658,2721.4,2721.0,3.67511378]
[1748502456290,0.7658,2721.4,2720.9,3.6751896]
[1748502456500,4.44048035,2721.4,2720.9,3.6751896]
[1748502456799,8.21248035,2721.4,2720.9,3.6751896]
[1748502457150,4.5378,2721.4,2721.0,3.67510341]
[1748502457556,4.5378,2721.4,2720.9,3.67520016]
[1748502457768,8.21239243,2721.4,2720.9,3.67520016]
[1748502458687,4.5378,2721.4,2721.0,3.67509291]
[1748502459401,0.7658,2721.4,2721.0,3.67509291]
[1748502459611,4.5358,2721.4,2721.0,3.67509291]
[1748502459977,0.7658,2721.4,2721.0,3.67509291]
[1748502460293,4.5358,2721.4,2721.0,3.67509291]
[1748502460495,4.5358,2721.4,2721.0,3.67503423]
[1748502460674,4.5358,2721.4,2721.1,3.67490108]
[1748502461286,4.5358,2721.4,2720.9,3.67520226]
[1748502461287,4.5358,2721.4,2721.0,3.6750517]
[1748502461880,5.39357029,2721.4,2720.5,8.0]
[1748502462093,9.06821826,2721.4,2720.9,3.67525181]
[1748502462282,9.06821826,2721.4,2720.8,3.67535749]
[1748502462283,3.67473761,2721.3,2720.8,3.67535749]
[1748502463006,9.06822565,2721.4,2720.8,3.67535749]
[1748502463213,1.27427581,2721.3,2720.8,3.67535749]
[1748502463972,4.94900394,2721.3,2720.8,3.67535749]
[1748502464676,0.7573,2721.2,2720.7,3.67545167]
[1748502465003,0.7573,2721.2,2720.3,3.66423867]
[1748502465189,0.7573,2721.2,2720.7,3.67541112]
[1748502465376,2.07238998,2721.2,2720.7,3.67541112]
[1748502465579,2.07238998,2721.2,2720.8,3.67538701]
[1748502465783,2.07238998,2721.2,2720.7,3.6754546]
[1748502466209,2.07238998,2721.2,2720.8,3.67537493]
[1748502466884,5.74726795,2721.2,2720.7,3.67546748]
[1748502467083,4.43217797,2721.2,2720.6,3.67559279]
[1748502467332,4.43219673,2721.2,2720.7,3.67551215]
[1748502467667,3.67499092,2721.1,2720.6,3.67560236]
[1748502467901,3.67499673,2721.1,2720.6,3.67560236]
[1748502468416,7.44013595,2721.0,2720.5,3.67578329]
[1748502468699,0.7804,2720.9,2720.6,3.67565001]
[1748502469469,0.7804,2720.9,2720.6,3.67553932]
[1748502469676,0.7804,2720.9,2720.7,3.67539031]
[1748502470115,0.7804,2720.9,2720.8,3.67538959]
[1748502470412,3.765,2721.1,2720.8,3.67538959]
[1748502470413,4.5454,2721.1,2720.8,3.67538959]
[1748502470708,4.5454,2721.1,2720.9,3.67525385]
[1748502471212,4.5454,2721.1,2720.8,3.67534598]
[1748502471707,4.5454,2721.1,2720.9,3.67514591]
[1748502471910,4.5454,2721.1,2720.8,3.67532283]
[1748502472111,4.5454,2721.1,2720.1,4.803]
[1748502472112,8.67499935,2721.1,2720.5,3.67571772]
[1748502472312,4.99994,2721.1,2720.7,3.67550425]
[1748502472514,4.99994,2721.1,2720.6,3.67558973]
[1748502473910,8.67494304,2721.1,2720.5,3.67571113]
[1748502474441,3.67532048,2720.9,2720.3,3.67593962]
[1748502474730,3.67532048,2720.9,2720.2,3.67620027]
[1748502474731,3.67532048,2720.9,2720.4,3.67590152]
[1748502475190,0.7528,2720.8,2720.4,3.67590152]
[1748502475389,0.7528,2720.8,2720.4,3.67593001]
[1748502475713,0.7528,2720.8,2720.5,3.67571894]
[1748502476475,0.7528,2720.8,2720.4,3.67585886]
[1748502476676,0.7528,2720.8,2720.5,3.67578425]
[1748502479002,0.7528,2720.8,2720.4,3.67592203]
[1748502479202,0.7528,2720.8,2720.5,3.67573707]
[1748502479835,0.7528,2720.8,2720.5,3.67578894]
[1748502481099,0.7528,2720.8,2720.4,3.67584283]
[1748502481305,3.758,2720.7,2720.4,3.67584283]
[1748502481721,3.758,2720.7,2720.4,3.67584582]
[1748502482106,3.758,2720.7,2720.5,3.67566601]
[1748502482851,3.758,2720.7,2720.4,3.67586659]
[1748502483527,8.25222587,2720.7,2720.2,3.67606903]
[1748502483672,0.8161,2720.6,2720.2,3.67606903]
[1748502484563,0.8161,2720.6,2720.3,3.67605531]
[1748502486048,0.8161,2720.6,2720.4,3.67592334]
[1748502486771,0.8161,2720.6,2720.3,3.67600156]
[1748502487749,0.8161,2720.6,2720.1,3.72629467]
[1748502488076,0.8161,2720.6,2720.2,3.67618823]
[1748502488978,5.31680342,2720.6,2720.1,3.72630298]
[1748502489637,1.64107077,2720.6,2720.2,3.67617792]
[1748502490279,1.64107077,2720.6,2720.1,3.72628026]
[1748502490485,5.31673296,2720.6,2720.1,3.72628026]
[1748502491207,1.64107077,2720.6,2720.1,3.72628026]
[1748502491409,1.64107077,2720.6,2720.1,3.7263006]
[1748502491699,1.64107077,2720.6,2720.1,0.05]
[1748502491878,1.64107077,2720.6,2720.1,3.7262731]
[1748502492205,1.64107077,2720.6,2720.2,3.6761868]
[1748502495174,1.64107077,2720.6,2720.1,0.05]
[1748502495378,4.49181582,2720.6,2720.1,3.72626565]
[1748502495921,3.752,2720.5,2720.1,3.72626565]
[1748502497181,3.752,2720.5,2720.1,0.05]
[1748502497674,7.4277972,2720.5,2720.1,0.05]
[1748502497879,8.61973966,2720.5,2720.1,0.05]
[1748502498616,8.61980018,2720.5,2720.1,0.05]
[1748502500836,4.94394246,2720.5,2720.1,3.72630842]
[1748502501665,1.19194246,2720.5,2720.1,0.05]
[1748502501871,3.751,2720.4,2720.3,3.67605685]
[1748502502275,3.751,2720.4,2720.2,3.67613011]
[1748502502885,3.751,2720.4,2720.1,3.72627625]
[1748502503736,3.751,2720.4,2720.2,3.6761962]
[1748502504068,3.751,2720.4,2720.1,0.05]
[1748502504371,4.47227155,2720.3,2720.1,0.05]
[1748502504576,3.67620027,2720.2,2720.1,0.05]
[1748502504775,4.50040027,2720.2,2720.1,0.05]
[1748502507338,3.67755222,2719.2,2719.1,0.05]
[1748502507574,8.58500744,2719.2,2719.1,0.05]
[1748502508187,9.13500744,2719.2,2719.1,0.05]
[1748502508336,8.58500744,2719.2,2719.1,0.05]
[1748502509964,8.58500744,2719.2,2718.1,3.72900644]
[1748502509965,3.67822482,2718.8,2718.1,3.72895657]
[1748502510291,3.67796575,2718.9,2718.1,0.05]
[1748502510292,8.26264886,2718.7,2718.1,0.05]
[1748502510661,3.67846134,2718.6,2718.1,0.05]
[1748502510859,4.5844,2718.7,2718.1,3.72892117]
[1748502511090,4.5844,2718.7,2718.2,3.67886771]
[1748502511282,8.26266125,2718.7,2718.1,3.72899407]
[1748502511485,4.5844,2718.7,2718.1,0.05]
[1748502512070,4.5844,2718.7,2718.2,3.67882935]
[1748502512286,4.5844,2718.7,2718.1,0.05]
[1748502512602,4.5844,2718.7,2718.2,0.1007]
[1748502512603,0.8154,2718.7,2718.2,0.1007]
[1748502512761,0.8154,2718.7,2718.4,3.67857642]
[1748502512956,4.5854,2718.7,2718.4,3.67857642]
[1748502513162,4.5854,2718.7,2718.3,3.67870673]
[1748502513363,4.5854,2718.7,2718.1,3.72901206]
[1748502513564,4.5854,2718.7,2718.4,3.67860001]
[1748502513771,4.5854,2718.7,2718.1,0.05]
[1748502513772,0.7512,2718.6,2718.1,0.05]
[1748502513980,0.7512,2718.6,2718.1,3.72901542]
[1748502514808,4.42957153,2718.6,2718.1,3.72901542]
[1748502515014,0.7756,2718.5,2718.1,0.05]
[1748502515198,3.67865321,2718.4,2718.1,0.05]
[1748502515574,3.67872578,2718.4,2718.1,0.05]
[1748502516022,3.678776,2718.3,2718.1,0.05]
[1748502516314,3.779,2718.2,2718.1,0.05]
[1748502516477,8.97928275,2718.2,2718.1,0.05]
[1748502517289,1.5213776,2718.2,2718.1,0.05]
[1748502517531,4.5576,2718.2,2718.1,0.05]
[1748502517724,0.7756,2718.2,2718.1,0.05]
[1748502517926,4.5576,2718.2,2718.1,0.05]
[1748502518283,0.7756,2718.2,2718.1,0.05]
[1748502518587,4.5576,2718.2,2718.1,0.05]
[1748502519177,0.7756,2718.2,2718.1,0.05]
[1748502519374,0.7846,2718.5,2718.2,3.67885666]
[1748502519606,3.67799877,2718.9,2718.1,0.05]
[1748502519607,0.8216,2718.9,2718.1,0.05]
[1748502519883,0.8216,2718.9,2718.4,3.67854262]
[1748502520082,0.8216,2718.9,2718.1,0.1507]
[1748502520284,3.782,2719.0,2718.7,3.67817638]
[1748502520515,3.782,2719.0,2718.8,3.67802231]
[1748502520717,0.7979,2719.3,2718.1,8.1507]
[1748502520884,3.783,2719.2,2718.9,3.67793683]
[1748502521220,3.783,2719.2,2718.1,0.05]
[1748502521425,3.783,2719.2,2718.7,3.67820206]
[1748502521426,7.4606601,2719.2,2718.7,3.67820206]
[1748502521596,3.782,2719.1,2718.2,0.1007]
[1748502521777,3.782,2719.1,2718.8,3.67809314]
[1748502521985,4.5799,2719.3,2718.4,3.67854535]
[1748502522180,4.5799,2719.3,2718.9,3.6778825]
[1748502522408,4.5799,2719.3,2718.8,3.67802649]
[1748502522623,8.25738779,2719.3,2718.7,3.67819594]
[1748502523103,3.67758381,2719.2,2718.7,3.67819594]
[1748502523299,0.8267,2719.6,2718.8,0.1007]
[1748502523499,0.8267,2719.9,2718.9,3.71473593]
[1748502523721,1.27702438,2719.9,2719.0,3.67782272]
[1748502523911,1.27702438,2719.9,2718.8,0.1007]
[1748502523912,0.8267,2719.9,2719.4,3.67718357]
[1748502524446,0.8267,2719.9,2719.0,3.67774476]
[1748502524748,3.783,2720.0,2719.7,3.6768726]
[1748502525312,4.46152888,2719.9,2719.3,3.67740206]
[1748502525520,0.7848,2719.9,2718.9,0.1007]
[1748502525821,0.7848,2719.9,2719.0,3.67772474]
[1748502526032,4.46143168,2719.9,2719.3,3.6773661]
[1748502526233,0.82444317,2719.8,2719.3,3.6773661]
[1748502526411,0.82444317,2719.8,2718.7,3.784]
[1748502526412,0.7848,2719.0,2718.1,0.05]
[1748502526615,0.7848,2719.0,2718.2,0.1007]
[1748502526813,0.7848,2719.0,2718.4,3.67862742]
[1748502526814,3.806,2718.9,2718.4,3.67862742]
[1748502527356,4.63287201,2718.9,2718.1,0.05]